bitfinex-derivatives/quotes_BNBF0:USTF0_20250406
["timestamp","ask_amount","ask_price","bid_price","bid_amount"]
[1743933271462,0.57841234,589.19,588.27,0.28645918]
[1743933271666,0.57841234,589.26,588.27,0.28645918]
[1743933271866,0.57841234,589.25,588.26,1.26919122]
[1743933272063,0.57841234,589.24,588.34,1.26919122]
[1743933272261,0.57841234,589.23,588.35,0.28646963]
[1743933272463,0.57841234,589.22,588.35,0.28646963]
[1743933272763,0.57841234,589.21,588.35,0.28646963]
[1743933272963,0.57841234,589.2,588.35,0.28646963]
[1743933273263,0.57853,589.19,588.35,0.28646963]
[1743933273463,0.57853,589.18,588.35,0.28646963]
[1743933273661,0.57853,589.17,588.35,0.28646963]
[1743933273861,0.57853,589.16,588.35,0.28646963]
[1743933274166,0.57853,589.15,588.35,0.28646963]
[1743933274366,0.57853,589.14,588.35,0.28646963]
[1743933274563,0.57853,589.2,588.35,0.28646963]
[1743933274764,0.57853,589.19,588.35,0.28646963]
[1743933274965,0.57853,589.18,588.35,0.28646963]
[1743933275162,0.57853,589.17,588.34,1.26919122]
[1743933275366,0.57853,589.16,588.35,0.28646989]
[1743933275569,0.57853,589.15,588.29,0.28646989]
[1743933275769,0.57853,589.14,588.3,0.28646989]
[1743933276064,0.57853,589.13,588.31,0.28646989]
[1743933276263,0.57853,589.18,588.29,0.28646989]
[1743933276464,0.57853,589.17,588.3,0.28646989]
[1743933276666,0.57853,589.16,588.29,0.28646989]
[1743933276869,0.57853,589.15,588.28,0.29547365]
[1743933277064,0.57853,589.14,588.29,0.28646864]
[1743933277266,0.57853,589.13,588.29,0.28646864]
[1743933277464,0.57853,589.12,588.29,0.28646864]
[1743933277663,0.57853,589.18,588.29,0.28646864]
[1743933277962,0.57853,589.17,588.32,1.26919122]
[1743933278169,0.57853,589.16,588.33,0.28646864]
[1743933278362,0.57853,589.15,588.33,0.28646864]
[1743933278568,0.57853,589.14,588.33,0.28646864]
[1743933278769,0.57853,589.13,588.33,0.28646864]
[1743933278964,0.57853,589.12,588.33,0.28646864]
[1743933279164,0.57853,589.11,588.33,0.28646864]
[1743933279364,0.57853,589.1,588.33,0.28646864]
[1743933279569,0.57853,589.09,588.33,0.28646864]
[1743933279771,0.57853,589.08,588.33,0.28646864]
[1743933279964,0.57853,589.13,588.33,0.28646864]
[1743933280265,0.57853,589.12,588.33,0.28646864]
[1743933280464,0.57853,589.11,588.33,0.28646864]
[1743933280670,0.57896646,589.1,588.33,0.28646864]
[1743933280863,0.57896646,589.09,588.29,0.28646864]
[1743933281063,0.57896646,589.08,588.3,0.28646864]
[1743933281266,0.57896646,589.07,588.22,0.28646864]
[1743933281467,0.57896646,589.06,588.23,0.28646864]
[1743933281667,0.57896646,589.13,588.22,0.28646864]
[1743933281867,0.57896646,589.12,588.21,0.34001462]
[1743933282068,0.57896646,589.11,588.23,0.29550627]
[1743933282273,0.57896646,589.1,588.24,0.28648898]
[1743933282473,0.57896646,589.09,588.23,0.29550627]
[1743933282673,0.57896646,589.08,588.24,0.28648898]
[1743933282876,0.57896646,589.07,588.24,0.28648898]
[1743933283170,0.57896646,589.06,588.24,0.28648898]
[1743933283375,0.57896646,589.05,588.24,0.28648898]
[1743933283673,0.57896646,589.04,588.24,0.28648898]
[1743933283874,0.57896646,589.13,588.24,0.28648898]
[1743933284067,0.57896646,589.12,588.22,0.28648898]
[1743933284272,0.57896646,589.11,588.23,0.28648898]
[1743933284573,0.57896646,589.1,588.24,0.28648898]
[1743933284875,0.57896646,589.09,588.25,0.28648898]
[1743933285070,0.57896646,589.08,588.23,0.29547741]
[1743933285274,0.57896646,589.07,588.24,0.28648898]
[1743933285473,0.57896646,589.06,588.24,0.28648898]
[1743933285768,0.57896646,589.05,588.24,0.28648898]
[1743933285972,0.57896646,589.04,588.24,0.28648898]
[1743933286174,0.57932431,589.03,588.24,0.28648898]
[1743933286373,0.57932431,589.02,588.24,0.28648898]
[1743933286574,0.57939227,589.01,588.24,0.28648898]
[1743933286770,0.57939227,589.1,588.24,0.28648898]
[1743933286969,0.57939227,589.42,588.25,0.28648898]
[1743933287174,1.23081031,589.41,588.22,0.28648898]
[1743933287474,0.9187204,589.4,588.23,0.28648898]
[1743933287774,0.91872615,589.39,588.24,0.28649965]
[1743933287974,0.91873191,589.38,588.22,0.28649965]
[1743933288175,0.91873767,589.37,588.23,0.58198083]
[1743933288375,0.57939227,589.36,588.4,1.26919122]
[1743933288572,0.57939227,589.35,588.4,1.26919122]
[1743933288770,0.57939227,589.34,588.41,0.28649978]
[1743933288969,0.57939227,589.33,588.41,0.28649978]
[1743933289174,0.57939227,589.32,588.41,0.28649978]
[1743933289373,0.57939227,589.31,588.41,0.28649978]
[1743933289571,0.57939227,589.3,588.41,0.28649978]
[1743933289873,0.57939227,589.29,588.41,0.28649978]
[1743933290072,0.57939227,589.28,588.41,0.28649978]
[1743933290371,0.57939227,589.27,588.41,0.28649978]
[1743933290571,0.57969696,589.26,588.41,0.28649978]
[1743933290768,0.57969696,589.25,588.41,0.28649978]
[1743933290972,0.57969696,589.24,588.27,0.28649978]
[1743933291173,0.57969696,589.23,588.28,0.28649978]
[1743933291474,0.57969696,589.22,588.29,0.28649978]
[1743933291671,0.57969696,589.21,588.27,0.28649978]
[1743933291874,0.57969696,589.2,588.27,0.28649978]
[1743933292074,0.57969696,589.19,588.27,0.28649978]
[1743933292275,0.57969696,589.18,588.27,0.28649978]
[1743933292570,0.57969696,589.17,588.27,0.28649978]
[1743933292775,0.57969696,589.16,588.27,0.28649978]
[1743933293074,0.57969696,589.15,588.27,0.28649978]
[1743933293270,0.57969696,589.14,588.27,0.28649978]
[1743933293474,0.57969696,589.13,588.27,0.28649978]
[1743933293674,0.57993166,589.12,588.26,0.28649978]
[1743933293876,0.57993166,589.11,588.26,0.28649978]
[1743933294177,0.57993166,589.1,588.26,0.28649978]
[1743933294375,0.57993166,589.09,588.26,0.28649978]
[1743933294577,0.57993166,589.08,588.26,0.28649978]
[1743933294772,0.57993166,589.07,588.26,0.28649978]
[1743933294983,0.57993166,589.06,588.26,0.28649978]
[1743933295175,0.57993166,589.05,588.26,0.28649978]
[1743933295375,0.57993166,589.04,588.26,0.28649978]
[1743933295577,0.57993166,589.03,588.26,0.28649978]
[1743933295773,0.57993166,589.02,588.26,0.28649978]
[1743933295973,0.57993166,589.01,588.26,0.28649978]
[1743933296274,0.57993166,589.0,588.26,0.28649978]
[1743933296478,0.57993166,588.99,588.27,0.28649978]
[1743933296674,0.57993166,588.98,588.25,0.28649978]
[1743933296875,0.57993166,588.97,588.26,0.28649978]
[1743933297076,0.57993166,588.96,588.24,1.26919122]
[1743933297280,0.57993166,588.95,588.24,1.26919122]
[1743933297578,0.57993166,588.94,588.24,1.26919122]
[1743933297775,0.57993166,588.93,588.24,1.26919122]
[1743933297977,0.57993166,588.92,588.24,1.26919122]
[1743933298175,0.57993166,588.91,588.24,1.26919122]
[1743933298379,0.57993166,588.9,588.24,1.26919122]
[1743933298573,0.57993166,588.89,588.24,1.26919122]
[1743933298777,0.57993166,588.88,588.24,1.26919122]
[1743933299079,0.57993166,588.87,587.37,1.26919122]
[1743933299279,0.57993166,588.86,587.39,0.34048928]
[1743933299480,0.57993166,588.85,587.4,0.28662659]
[1743933299680,0.57993166,588.84,587.42,0.34047189]
[1743933299879,0.57993166,588.83,587.43,0.28662659]
[1743933300075,0.57993166,588.82,587.45,0.3404545]
[1743933300280,0.57993166,588.81,587.46,0.28662659]
[1743933300482,0.57993166,588.8,587.48,0.34043712]
[1743933300683,0.57993166,588.79,587.49,0.28662668]
[1743933300877,0.57993166,588.78,587.51,0.34041973]
[1743933301077,0.57993166,588.77,587.52,0.28662668]
[1743933301377,0.29564937,588.86,587.52,0.28662668]
[1743933301378,0.29564937,588.86,587.54,0.34040235]
[1743933301582,0.57920722,588.85,587.54,0.34040235]
[1743933301783,0.57920722,588.84,587.55,0.28662699]
[1743933301983,0.57920722,588.83,587.57,0.34038497]
[1743933302183,0.57920722,589.36,587.58,0.28662699]
[1743933302383,0.33942027,589.24,587.6,0.34036759]
[1743933302683,0.57920722,589.23,587.61,0.28662699]
[1743933302883,0.57920722,589.22,587.61,0.28662699]
[1743933303078,0.57920722,589.21,587.63,0.34035022]
[1743933303278,0.91865053,589.2,587.63,0.34035022]
[1743933303484,0.91865629,589.19,587.64,0.28662636]
[1743933303684,0.91866205,589.18,587.66,0.34033284]
[1743933303883,0.91866781,589.17,587.67,0.28662636]
[1743933304079,0.91867357,589.16,587.69,0.34031547]
[1743933304283,0.91867934,589.15,587.7,0.28662636]
[1743933304482,0.9186851,589.14,587.72,0.3402981]
[1743933304685,0.91869086,589.13,587.73,0.28662636]
[1743933304885,0.91869662,589.12,587.74,0.34028652]
[1743933305083,0.57920722,589.11,587.75,0.28662636]
[1743933305285,0.57920722,589.1,587.76,0.34027494]
[1743933305485,0.57920722,589.09,587.77,0.28662636]
[1743933305687,0.57920722,589.08,587.78,0.34026336]
[1743933305888,0.57920722,589.07,587.79,0.28662636]
[1743933306187,0.57920722,589.06,587.8,0.34025178]
[1743933306486,0.57920722,589.05,587.8,0.34025178]
[1743933306686,0.57920722,589.04,587.81,0.28662668]
[1743933306886,0.57920722,589.03,587.82,0.3402402]
[1743933307081,0.3394894,589.12,587.83,0.28662668]
[1743933307082,0.57920722,589.02,587.83,0.28662668]
[1743933307286,0.57920722,589.01,587.84,0.34022863]
[1743933307487,0.57920722,589.0,587.85,0.28662668]
[1743933307688,0.57920722,588.99,587.86,0.34021705]
[1743933307988,0.57920722,588.98,587.87,0.28662668]
[1743933308188,0.57920722,588.97,587.88,0.34020548]
[1743933308390,0.57920722,588.96,587.89,0.28662668]
[1743933308590,0.57920722,588.95,587.9,0.34019391]
[1743933308790,0.57920722,588.94,587.91,0.28662668]
[1743933308990,0.57920722,589.11,587.91,0.28662668]
[1743933309193,0.29561923,588.94,587.91,0.28662668]
[1743933309492,0.57920722,589.09,587.91,0.28662668]
[1743933309692,0.29562048,588.93,587.91,0.28662668]
[1743933310192,0.3394894,589.12,587.91,0.28662668]
[1743933310389,0.29562425,588.92,587.91,0.28662668]
[1743933310793,0.3394894,589.12,587.91,0.28662668]
[1743933311493,0.3394894,589.12,587.9,0.34019391]
[1743933311794,0.3394894,589.12,587.91,0.28662636]
[1743933312291,0.29552258,589.11,587.91,0.28662636]
[1743933315094,0.29552258,589.11,587.92,0.28662668]
[1743933315294,0.29552258,589.11,587.93,0.28662668]
[1743933315496,0.29552258,589.11,587.91,0.28662668]
[1743933315698,0.29552258,589.11,587.92,0.28662668]
[1743933315996,0.29552258,589.11,587.93,0.28662668]
[1743933316196,0.29552258,589.11,587.91,0.28662668]
[1743933317294,0.57920722,589.1,587.91,0.28662668]
[1743933317493,0.29552258,589.11,587.91,0.28662668]
[1743933317494,0.57920722,589.09,587.91,0.28662668]
[1743933317696,0.57920722,589.08,587.91,0.28662668]
[1743933317893,0.57920722,589.07,587.91,0.28662668]
[1743933318097,0.57920722,589.06,587.91,0.28662668]
[1743933318297,0.57920722,589.05,587.91,0.28662668]
[1743933318498,0.57920722,589.04,587.91,0.28662668]
[1743933318698,0.57920722,589.03,587.91,0.28662668]
[1743933318998,0.57920722,589.02,587.91,0.28662668]
[1743933319194,0.57920722,589.01,587.91,0.28662668]
[1743933319500,0.57920722,589.0,587.91,0.28662668]
[1743933319696,0.57920722,588.99,587.91,0.28662668]
[1743933319897,0.57920722,588.98,587.91,0.28662668]
[1743933320097,0.57920722,588.97,587.91,0.28662668]
[1743933320297,0.57920722,588.96,587.91,0.28662668]
[1743933320495,0.57717118,589.11,587.91,0.28662668]
[1743933320699,0.57717118,589.1,587.91,0.28662668]
[1743933320899,0.57717118,589.09,587.91,0.28662668]
[1743933321101,0.57717118,589.08,587.91,0.28662668]
[1743933321299,0.57717118,589.07,587.91,0.28662668]
[1743933321499,0.57717118,589.06,587.91,0.28662668]
[1743933321699,0.57717118,589.05,587.92,0.28663016]
[1743933321897,0.57717118,589.04,587.91,0.28663016]
[1743933322096,0.57717118,589.03,587.93,0.28663016]
[1743933322298,0.57714543,589.02,587.94,0.28663016]
[1743933322602,0.57714543,589.01,587.95,0.28663016]
[1743933322805,0.57714543,589.0,587.91,0.28663016]
[1743933322998,0.57714543,588.99,587.91,0.28663016]
[1743933323304,0.57714543,588.98,587.91,0.28663016]
[1743933323504,0.57714543,588.97,587.91,0.28663016]
[1743933323705,0.57714543,588.96,587.91,0.28663016]
[1743933323906,0.57714543,589.11,587.91,0.28663016]
[1743933324102,0.29562048,588.96,587.9,0.34019391]
[1743933324306,0.29562048,588.96,587.91,0.28663017]
[1743933324504,0.57714543,589.08,587.91,0.28663017]
[1743933324801,0.57714543,589.07,587.91,0.28663017]
[1743933325003,0.57714543,589.06,587.91,0.28663017]
[1743933325204,0.57714543,589.05,587.91,0.28663017]
[1743933325402,0.57714543,589.04,587.91,0.28663017]
[1743933325602,0.57714543,589.1,587.91,0.28663017]
[1743933325806,0.29562174,589.04,587.91,0.28663017]
[1743933326609,0.29562174,589.04,587.9,1.60938513]
[1743933326805,0.29562174,589.04,587.91,0.286627]
[1743933328212,0.87280066,589.04,587.91,0.286627]
[1743933328406,0.29562174,589.04,587.9,1.60938513]
[1743933328605,0.57717892,589.03,587.91,0.28662641]
[1743933328907,0.29562174,589.04,587.91,0.28662641]
[1743933329206,0.57717892,589.03,587.91,0.28662641]
[1743933330813,0.57717892,589.03,587.94,1.26919122]
[1743933331012,0.57717892,589.03,587.95,0.28662641]
[1743933331208,0.57717892,589.02,587.95,0.28662641]
[1743933331412,0.57717892,589.03,587.95,0.28662641]
[1743933332212,0.87280443,589.02,587.95,0.28662641]
[1743933332412,0.57717892,589.01,587.95,0.28662641]
[1743933332713,0.57717892,589.0,587.95,0.28662641]
[1743933332913,0.57717892,588.99,587.95,0.28662641]
[1743933333107,0.57717892,588.98,587.95,0.28662641]
[1743933333311,0.57717892,588.97,587.95,0.28662641]
[1743933333508,0.57717892,588.96,588.07,1.26919122]
[1743933333716,0.57717892,588.95,588.08,0.28662641]
[1743933333914,0.57717892,588.94,588.08,0.28662641]
[1743933334112,0.57717892,589.01,588.08,0.28662641]
[1743933334309,0.57717892,589.0,588.08,0.28662641]
[1743933334511,0.57717892,588.99,588.08,0.28662641]
[1743933334709,0.57717892,588.98,588.08,0.28662641]
[1743933334910,0.57717892,588.97,588.08,0.28662641]
[1743933335113,0.57717892,588.96,588.09,0.2866264]
[1743933335313,0.57717892,588.95,588.08,0.2866264]
[1743933335514,0.57717892,588.94,588.09,0.2866264]
[1743933335713,0.57717892,588.93,588.08,0.2866264]
[1743933335914,0.57717892,588.92,588.09,0.2866264]
[1743933336114,0.57717892,588.97,588.08,0.2866264]
[1743933336311,0.57717892,588.96,588.1,0.2866264]
[1743933336511,0.57717892,588.95,588.11,0.2866264]
[1743933336709,0.57717892,588.94,588.1,1.26919122]
[1743933336911,0.57717892,588.93,588.11,0.2866264]
[1743933337114,0.57717892,588.92,588.11,0.2866264]
[1743933337315,0.57717892,588.91,588.11,0.2866264]
[1743933337511,0.57717892,588.97,588.11,0.2866264]
[1743933337713,0.57717892,588.96,588.11,0.2866264]
[1743933337912,0.57717892,588.95,588.11,0.2866264]
[1743933338113,0.57717892,588.94,588.11,0.2866264]
[1743933338315,0.57717892,588.93,588.11,0.2866264]
[1743933338515,0.57717892,588.92,588.11,0.2866264]
[1743933338713,0.57717892,588.91,588.11,0.2866264]
[1743933338919,0.57781844,588.9,588.17,1.26919122]
[1743933339119,0.57781844,589.1,588.18,0.2866264]
[1743933339313,0.29559412,588.9,588.18,0.2866264]
[1743933339717,0.57781844,589.07,588.18,0.2866264]
[1743933339918,0.57781844,589.06,588.18,0.2866264]
[1743933340119,0.57781844,589.05,588.18,0.2866264]
[1743933340419,0.57781844,589.04,588.18,0.2866264]
[1743933340613,0.57797644,589.03,588.18,0.2866264]
[1743933340816,0.57797644,589.02,588.18,0.2866264]
[1743933341016,0.57797644,589.01,588.18,0.2866264]
[1743933341217,0.57797644,589.0,588.18,0.2866264]
[1743933341519,0.57797644,588.99,588.17,1.26919122]
[1743933341818,0.57797644,588.98,588.18,0.28662666]
[1743933342018,0.57797644,588.97,588.18,0.28662666]
[1743933342218,0.57797644,588.96,588.18,0.28662666]
[1743933342415,0.57797644,588.95,588.18,0.28662666]
[1743933342719,0.57797644,588.94,588.2,1.26919122]
[1743933342919,0.57797644,588.93,588.21,0.28662666]
[1743933343117,0.57797644,589.02,588.21,0.28662666]
[1743933343421,0.57797644,589.01,588.21,0.28662666]
[1743933343718,0.57797644,589.0,588.21,0.28662666]
[1743933343925,0.57797644,588.99,588.21,0.28662666]
[1743933344218,0.57797644,588.98,588.21,0.28662666]
[1743933344415,0.57797644,588.97,588.21,0.28662666]
[1743933344619,0.57797644,588.96,588.21,0.28662666]
[1743933344814,0.57797644,588.95,588.21,0.28662666]
[1743933345018,0.57797644,588.94,588.22,0.28662477]
[1743933345217,0.57797644,588.93,588.21,0.28662477]
[1743933345419,0.57797644,588.92,588.22,0.28662477]
[1743933345615,0.57797644,588.91,588.23,1.26919122]
[1743933345816,0.57797644,588.9,588.24,0.28662477]
[1743933346019,0.57797644,588.94,588.24,0.28662477]
[1743933346221,0.57797644,588.93,588.24,0.28662477]
[1743933346520,0.57797644,588.92,588.23,1.26919122]
[1743933346819,0.57797644,588.91,588.24,0.2866307]
[1743933347021,0.57797644,588.9,588.24,0.2866307]
[1743933347320,0.57797644,588.89,588.24,0.2866307]
[1743933347521,0.57797644,588.88,588.24,0.2866307]
[1743933347719,0.57797644,588.87,588.24,0.2866307]
[1743933347916,0.57797644,588.86,588.24,0.2866307]
[1743933348223,0.57797644,588.85,588.25,0.2866307]
[1743933348422,0.57797644,588.84,588.16,0.2866307]
[1743933348622,0.57797644,588.83,588.15,1.26919122]
[1743933348823,0.57797644,588.82,588.16,0.28662646]
[1743933349123,0.57797644,588.81,588.16,0.28662646]
[1743933349422,0.57797644,588.8,588.16,0.28662646]
[1743933349625,0.57797644,588.79,588.16,0.28662646]
[1743933349823,0.57896195,588.78,588.16,0.28662646]
[1743933350023,0.57896195,589.1,588.06,1.26919122]
[1743933350223,0.57896195,589.09,588.07,0.28662681]
[1743933350422,0.57896195,589.08,588.07,0.28662681]
[1743933350619,0.33949517,589.11,588.07,0.28662681]
[1743933350825,0.57912365,589.1,588.07,0.28662681]
[1743933351025,0.57912365,589.09,588.07,0.28662681]
[1743933351226,0.57912365,589.08,588.07,0.28662681]
[1743933351426,0.57912365,589.07,588.07,0.28662681]
[1743933351621,0.57912365,589.06,588.06,1.26919122]
[1743933351822,0.57932556,589.05,588.08,0.28662688]
[1743933352022,0.57932556,589.04,588.09,0.28662688]
[1743933352227,0.57932556,589.03,588.1,0.28662688]
[1743933352526,0.57932556,589.02,588.11,0.28662688]
[1743933352726,0.57932556,589.01,588.12,0.28662688]
[1743933352924,0.57932556,589.0,588.07,0.28662688]
[1743933353228,0.57932556,588.99,588.08,0.28662688]
[1743933353428,0.57932556,588.98,588.07,0.28662688]
[1743933353625,0.57932556,588.97,588.08,0.28662688]
[1743933353929,0.57932556,588.96,588.07,0.28662688]
[1743933354130,0.57932556,588.95,588.08,0.28662688]
[1743933354331,0.57932556,588.94,588.09,0.28662688]
[1743933354530,0.57932556,588.93,588.07,0.28662688]
[1743933354730,0.57932556,588.92,588.08,0.28662688]
[1743933354926,0.57932556,588.91,588.08,0.28662688]
[1743933355131,0.57932556,588.9,588.09,0.28662688]
[1743933355332,0.57932556,588.89,588.07,0.28662688]
[1743933355531,0.57932556,588.88,588.08,0.28662688]
[1743933355733,0.57932556,588.87,588.07,0.28662688]
[1743933355928,0.57932556,588.86,588.07,0.28662688]
[1743933356232,0.57932556,588.85,588.07,0.28662688]
[1743933356528,0.57932556,588.84,588.07,0.28662688]
[1743933356833,0.57932556,588.83,588.07,1.5558181]
[1743933357134,0.57932556,588.82,588.08,0.28662688]
[1743933357332,0.57932556,588.81,588.08,0.28662688]
[1743933357631,0.29560291,588.84,588.08,0.28662688]
[1743933357632,0.57932556,588.8,588.08,0.28662688]
[1743933357930,0.57932556,588.79,588.08,0.28662688]
[1743933358131,0.57932556,588.78,588.08,0.28662688]
[1743933358432,0.57932556,588.77,588.07,1.26919122]
[1743933358630,0.57932556,588.76,588.08,0.2866365]
[1743933358832,0.57932556,588.75,588.08,0.2866365]
[1743933359128,0.57932556,588.74,588.08,0.2866365]
[1743933359332,0.57932556,588.73,588.08,0.2866365]
[1743933359632,0.33949517,589.11,588.08,0.2866365]
[1743933359633,0.57932556,588.72,588.08,0.2866365]
[1743933359832,0.57932556,588.71,588.04,0.2866365]
[1743933360129,0.57932556,588.7,588.05,0.28663971]
[1743933360330,0.57932556,588.69,588.06,0.28663971]
[1743933360529,0.57932556,588.68,588.04,0.28663971]
[1743933360731,0.58118777,588.67,588.05,0.28663971]
[1743933360931,0.58118777,588.66,588.04,0.28663971]
[1743933361129,0.29560793,588.84,588.05,0.28663971]
[1743933361331,0.29560793,588.84,588.03,1.26919122]
[1743933361332,0.58119292,588.83,588.04,0.28663971]
[1743933361526,0.58119292,588.83,588.03,1.26919122]
[1743933361527,0.58119292,588.82,588.05,0.28663971]
[1743933361732,0.58119292,588.81,588.05,0.28663971]
[1743933361930,0.58119292,588.8,588.06,0.28663971]
[1743933362136,0.58119292,588.79,588.04,0.28663971]
[1743933362330,0.33949517,589.11,588.06,1.26919122]
[1743933362331,0.58119292,588.78,588.06,1.26919122]
[1743933362530,0.58119292,588.77,588.07,0.28663971]
[1743933362730,0.58119292,588.76,588.07,0.28663971]
[1743933362934,0.58119292,588.75,588.07,0.28663971]
[1743933363131,0.58119292,588.74,588.07,0.28663971]
[1743933363335,0.58119292,588.73,588.07,0.28663971]
[1743933363630,0.58119292,588.72,588.07,0.28663971]
[1743933363831,0.58119292,588.71,588.07,0.28663971]
[1743933364035,0.58119292,588.7,588.07,0.28663971]
[1743933364236,0.58119292,588.69,588.07,0.28663971]
[1743933364435,0.58119292,588.68,588.07,0.28663971]
[1743933364638,0.58119292,588.67,588.07,0.28663971]
[1743933364836,0.33949517,589.11,588.06,0.28663971]
[1743933365037,0.58114249,589.1,588.07,0.28663971]
[1743933365339,0.58114249,589.09,588.08,0.28663971]
[1743933365537,0.58114249,589.08,588.06,0.28663971]
[1743933365838,0.58114249,589.07,588.07,0.28663971]
[1743933366036,0.58114249,589.06,588.08,0.28663971]
[1743933366234,0.58114249,589.05,588.05,1.26919122]
[1743933366435,0.58114249,589.04,588.06,0.28663818]
[1743933366637,0.58114249,589.03,588.06,0.28663818]
[1743933366837,0.58114249,589.02,588.06,0.28663818]
[1743933367037,0.58114249,589.01,588.06,0.28663818]
[1743933367238,0.58114249,589.0,588.06,0.28663818]
[1743933367438,0.58114249,588.99,588.1,1.26919122]
[1743933367638,0.58114249,588.98,588.11,0.28663818]
[1743933367838,0.58114249,588.97,588.11,0.28663818]
[1743933368037,0.58114249,588.96,588.11,0.28663818]
[1743933368337,0.58114249,588.95,588.11,0.28663818]
[1743933368534,0.5811143,588.94,588.11,0.28663818]
[1743933368737,0.5811143,588.93,588.11,0.28663818]
[1743933368937,0.5811143,588.92,588.11,0.28663818]
[1743933369137,0.5811143,588.91,588.11,0.28663818]
[1743933369434,0.58097819,588.9,588.11,0.28663818]
[1743933369633,0.33950093,589.1,588.11,0.28663818]
[1743933369634,0.58097819,588.89,588.11,0.28663818]
[1743933369834,0.58097819,588.88,588.11,0.28663818]
[1743933370032,0.58097819,588.87,588.11,0.28663818]
[1743933370333,0.58097819,588.86,588.11,0.28663818]
[1743933370535,0.58097819,588.85,588.11,0.28663818]
[1743933370833,0.58097819,588.84,588.11,0.28663818]
[1743933371033,0.58097819,588.83,588.11,0.28663818]
[1743933371237,0.33950093,589.1,588.11,0.28663818]
[1743933371435,0.58093453,589.09,588.11,0.28663818]
[1743933371641,0.58093453,589.08,588.11,0.28663818]
[1743933371833,0.58093453,589.07,588.11,0.28663818]
[1743933372035,0.58093453,589.06,588.11,0.28663818]
[1743933372334,0.58093453,589.05,588.11,0.28663818]
[1743933372537,0.58093453,589.04,588.12,0.28663823]
[1743933372838,0.58093453,589.03,588.13,0.28663823]
[1743933373038,0.58093453,589.03,588.04,1.26919122]
[1743933373039,0.58093453,589.02,588.05,0.28663823]
[1743933373235,0.58093453,589.01,588.06,0.28663823]
[1743933373435,0.58093453,589.0,588.05,0.28663823]
[1743933373741,0.58093453,588.99,588.06,0.28663823]
[1743933373939,0.58093453,588.98,588.05,0.28663823]
[1743933374140,0.58093453,588.97,588.06,0.28663823]
[1743933374341,0.58093453,588.96,588.07,0.28663823]
[1743933374537,0.58093453,588.95,588.05,0.28663823]
[1743933374840,0.58093453,588.94,588.06,0.28663823]
[1743933375042,0.58093453,588.93,588.05,0.28663823]
[1743933375236,0.58093453,588.92,588.05,0.28663823]
[1743933375436,0.58093453,588.91,588.05,0.28663823]
[1743933375638,0.58093453,588.9,588.05,0.28663823]
[1743933375840,0.58093453,588.89,588.04,0.28663823]
[1743933376038,0.58093453,588.88,588.05,0.28663823]
[1743933376241,0.58093453,588.87,588.04,0.28663823]
[1743933376442,0.58093453,588.86,588.05,0.28663856]
[1743933376744,0.58093453,588.85,588.06,0.28663856]
[1743933376945,0.58093453,588.84,588.04,0.28663856]
[1743933377145,0.58093453,588.83,588.05,0.28663856]
[1743933377340,0.58093453,588.83,588.03,1.26919122]
[1743933377341,0.58093453,588.82,588.04,0.28663856]
[1743933377541,0.58093453,588.81,588.05,0.28663856]
[1743933377742,0.58093453,588.8,588.04,0.28663856]
[1743933377943,0.58093453,588.79,588.05,0.28663856]
[1743933378144,0.58093453,588.78,588.04,1.55582978]
[1743933378344,0.58093453,588.77,588.05,0.28663856]
[1743933378546,0.58093453,588.76,588.05,0.28663856]
[1743933378750,0.58093453,588.75,588.05,0.28663856]
[1743933378949,0.58093453,588.74,588.05,0.28663856]
[1743933379246,0.58093453,588.73,588.05,0.28663856]
[1743933379449,0.58093453,588.72,588.05,0.28663856]
[1743933379746,0.58093453,588.71,588.05,0.28663856]
[1743933379950,0.58093453,588.7,588.05,0.28663856]
[1743933380145,0.58093453,588.69,588.0,0.28663856]
[1743933380349,0.58093453,588.68,588.01,0.28663856]
[1743933380546,0.58064906,588.67,588.0,0.28663856]
[1743933380748,0.58064858,588.66,588.01,0.28663856]
[1743933380950,0.33950093,589.1,588.0,0.28663856]
[1743933381149,0.58065022,589.09,588.01,0.28663856]
[1743933381349,0.58065022,589.08,588.0,0.28663856]
[1743933381645,0.58065022,589.07,588.01,0.28663928]
[1743933381850,0.58065022,589.06,588.0,0.28663928]
[1743933382051,0.58065022,589.05,588.0,0.28663928]
[1743933382350,0.58064649,589.04,588.0,0.28663928]
[1743933382552,0.58064649,589.03,588.0,0.28663928]
[1743933382748,0.58064649,589.02,588.07,1.26919122]
[1743933382953,0.58064649,589.01,588.08,0.28663928]
[1743933383153,0.58064649,589.0,588.08,0.28663928]
[1743933383354,0.58064649,588.99,588.08,0.28663928]
[1743933383553,0.58064649,588.98,588.08,0.28663928]
[1743933383752,0.58064649,588.97,588.08,0.28663928]
[1743933383950,0.58064649,588.96,588.08,0.28663928]
[1743933384154,0.58064649,588.95,588.08,0.28663928]
[1743933384350,0.58064649,588.94,588.09,0.28663864]
[1743933384550,0.58064649,588.93,588.08,0.28663864]
[1743933384753,0.58064649,588.92,588.09,0.28663864]
[1743933385054,0.58064649,588.91,588.08,0.28663864]
[1743933385253,0.58064649,588.9,588.08,0.28663864]
[1743933385452,0.58064649,588.89,588.08,0.28663864]
[1743933385668,0.58064649,588.88,588.13,1.26919122]
[1743933385849,0.58064649,588.87,588.14,0.28663864]
[1743933386050,0.58064174,588.86,588.14,0.28663864]